Cogmind - Beta 15 @@@ ROGUE MODE // 2025.09.09 @ 13:02:36 Player: Godsword Result: Destroyed by N0-U30(j) with Overtuned Pulse Rifle Performance ------------- Evolutions (0) 0 Regions Visited (4) 800 Robots Destroyed (22) 110 Value Destroyed (270) 270 Prototype IDs (6) 120 Alien Tech Used (0) 0 Bonus (800) 800 TOTAL SCORE: 2100 Bonus ------- Registered with UFD 300 Met Optimus in HQ 500 Cogmind --------- Core Integrity 0/250 Matter 231/300 Energy 125/125 System Corruption 0% Temperature Cool (24) Movement Walking (250) Ox2 Location -9/Scraptown Parts ------- > --- POWER (1) -------- Light Ion Engine > --- PROPULSION (2) --- Carbon-fiber Leg Overtuned Titanium Leg > --- UTILITY (2) ------ Huge Storage Unit Signal Interpreter > --- WEAPON (2) ------- Mini Grenade Launcher Great Maul > --- INVENTORY (25) --- Makeshift Power Source Makeshift Power Source Carbon-fiber Leg Carbon-fiber Leg Carbon-fiber Leg Overtuned Titanium Leg VSS Leg Power Amplifier Cooling System Large Matter Pod (150) Structural Scanner Sensor Array Improved Terrain Scanner Terrain Scan Processor Improved Actuator Array Transmission Jammer Hardened Light Armor Plating Grenade Launcher Rocket Launcher Long-range Missile Launcher Plasma Cutter Mace Great Maul DRS Beacon (Ready) Botcube Peak State ------------ > --- POWER ------------ Light Fission Core > --- PROPULSION ------- Carbon-fiber Leg Carbon-fiber Leg > --- UTILITY ---------- Huge Storage Unit Signal Interpreter > --- WEAPON ----------- Mini Grenade Launcher Great Maul > --- INVENTORY -------- Makeshift Power Source Carbon-fiber Leg Flight Unit Flight Unit Power Amplifier Cooling System Medium Battery Large Matter Pod Structural Scanner Sensor Array Improved Terrain Scanner Improved Terrain Scanner Terrain Scan Processor Improved Targeting Computer Improved Actuator Array Transmission Jammer Hardened Light Armor Plating Grenade Launcher Rocket Launcher Long-range Missile Launcher Plasma Cutter Mace Great Maul DRS Beacon Botcube [Rating: 25] Favorites ----------- Power Light Fission Core Engine Light Ion Engine Power Core Light Fission Core Propulsion Compact Wheel Leg Carbon-fiber Leg Wheel Compact Wheel Utility Signal Interpreter Storage Huge Storage Unit Processor Signal Interpreter Weapon Light Assault Rifle Energy Gun Medium Laser Ballistic Gun Light Assault Rifle Launcher Mini Grenade Launcher Impact Weapon Flail Build | -11 -10 -10 -9 -9 ------- Run | Yrd Mat Sub Rec Scr Slots Evolved . | . . . . . Power . | . . . . . Propulsion . | . . . . . Utility . | . . . . . Weapon . | . . . . . Parts Attached 23 | 8 5 . 3 7 Power 5 | 2 1 . 1 1 Engine 4 | 2 1 . 1 . Core 1 | . . . . 1 Reactor . | . . . . . Propulsion 8 | 3 1 . 1 3 Treads . | . . . . . Leg 3 | . . . . 3 Wheel 5 | 3 1 . 1 . Hover . | . . . . . Flight . | . . . . . Utility 4 | 1 2 . 1 . Device . | . . . . . Storage 2 | 1 . . 1 . Processor 2 | . 2 . . . Hackware . | . . . . . Protection . | . . . . . Artifact . | . . . . . Weapon 6 | 2 1 . . 3 Energy Gun 1 | 1 . . . . Energy Cannon . | . . . . . Ballistic Gun 2 | 1 1 . . . Ballistic Cannon . | . . . . . Launcher 1 | . . . . 1 Special Weapon . | . . . . . Impact Weapon 2 | . . . . 2 Slashing Weapon . | . . . . . Piercing Weapon . | . . . . . Special Melee Weapon . | . . . . . Unidentified Prototypes . | . . . . . Parts Lost 4 | . 1 2 . 1 Power 3 | . 1 1 . 1 Propulsion 1 | . . 1 . . Utility . | . . . . . Weapon . | . . . . . Highest Loss Streak 2 | . 1 2 . 1 To Critical Strikes . | . . . . . Average Backups 14 | . 4 8 9 19 Power . | . . 1 . . Propulsion 2 | . 2 3 2 2 Utility 6 | . . 1 3 9 Weapon 4 | . . 3 3 5 Tool/Special . | . . . . . Unused Backups 31 | . . . 1 30 Power 2 | . . . . 2 Propulsion 7 | . . . . 7 Utility 13 | . . . . 13 Weapon 8 | . . . 1 7 Tool/Special 1 | . . . . 1 Average Slot Usage (%) 98 | . 96 98 99 98 Engine 6 | . 13 13 13 2 Core 7 | . . . . 11 Leg 1 | . . . . 1 Wheel 26 | . 28 27 28 25 Storage 14 | . 14 14 14 14 Processor 13 | . 11 14 14 14 Ballistic Gun 17 | . 21 28 28 13 Launcher 5 | . . . . 7 Impact Weapon 5 | . . . . 7 Peak Build Rating 25 | 6 8 8 8 25 Average Rating 12 | 5 6 7 7 15 On Entrance 5 | . 6 8 6 8 Naked Turns . | . . . . . Heaviest Build 92 | 11 11 10 85 92 Greatest Support 34 | 32 32 32 32 34 Greatest Overweight (x) 30 | . . . 2 30 Average Overweight (x) 1 | . . . 1 2 Largest Inventory Capacity 25 | 8 8 8 25 25 Average Capacity 20 | 7 8 8 20 25 Most Carried 25 | 2 8 8 11 25 Average Carried 15 | . 4 8 9 20 Final Capacity 25 | 8 8 8 25 25 Final Carried 25 | 1 8 8 11 25 Class Distribution -------------------- 74% | Mutant 25% | Scavenger-Mutant Dominant Class ---------------- Mutant | -10/Materials Mutant | -10/Subcaves Scavenger-Mutant | -9/Recycling Mutant | -9/Scraptown Resources | -11 -10 -10 -9 -9 ----------- Run | Yrd Mat Sub Rec Scr Matter Collected 614 | 300 70 18 180 46 Remotely . | . . . . . Salvage Created 624 | 243 223 41 . 117 Parts 52 | 28 15 7 . 2 Haulers Intercepted . | . . . . . Recyclers Shooed 1 | . 1 . . . Parts Field Recycled . | . . . . . Retrieved Matter . | . . . . . Parts Self-Destructed 7 | . . 7 . . Prevented . | . . . . . Kills | -11 -10 -10 -9 -9 ------- Run | Yrd Mat Sub Rec Scr Combat Hostiles Destroyed 9 | . 4 3 . 2 Guns 7 | . 4 3 . . AOE 2 | . . . . 2 Classes Destroyed 7 | 3 2 . . 2 Worker 1 | 1 . . . . Tunneler 9 | 9 . . . . Recycler 3 | 1 2 . . . Swarmer 6 | . 3 3 . . Grunt 1 | . 1 . . . Ranger 1 | . . . . 1 Scrapper 1 | . . . . 1 Best Kill Streak 5 | 4 5 3 . 2 Combat Bots Only 3 | . 2 3 . 2 Max Kills in Single Turn 1 | 1 1 1 . 1 Gunslinging . | . . . . . Exploded 1 | . . . . 1 Melee . | . . . . . Uniques/NPCs Destroyed . | . . . . . Combat | -11 -10 -10 -9 -9 -------- Run | Yrd Mat Sub Rec Scr Hostile Shots Fired 75 | . 17 44 . 14 Missed 20 | . 2 14 . 4 Hits 55 | . 15 30 . 10 Projectile 55 | . 15 30 . 10 Damage Taken 618 | . 218 222 . 178 Core 251 | . 109 74 . 68 Absorbed by Shields . | . . . . . Regen/Repaired (Parts) 19 | . 19 . . . Core Remaining (%) 100 | 100 . . . . Volleys Fired 59 | 33 18 4 . 4 Largest 2 | 2 2 2 . 1 Hottest 70 | 70 70 40 . 30 Shots Fired 114 | 66 36 8 . 4 Gun 110 | 66 36 8 . . Cannon . | . . . . . Launcher 4 | . . . . 4 Special . | . . . . . Kinetic 63 | 33 22 8 . . Thermal 47 | 33 14 . . . Explosive 4 | . . . . 4 Electromagnetic . | . . . . . Robot Hit Streak 5 | 5 5 2 . . Robot Miss Streak 4 | 4 2 1 . . Penetration Max . | . . . . . Secondary Targets 2 | . 2 . . . Max Gunslinging Chain 1 | . 1 . . . Shots Hit Robots 56 | 28 24 4 . . Core Hits 32 | 16 10 3 . 3 Critical Kills . | . . . . . Critical Parts Destroyed . | . . . . . Critical Strikes 3 | 3 . . . . Burn 3 | 3 . . . . Melee Attacks . | . . . . . Impact . | . . . . . Slashing . | . . . . . Piercing . | . . . . . Sneak Attacks . | . . . . . Combat Hostiles . | . . . . . Follow-up Attacks . | . . . . . Damage Inflicted 719 | 341 228 34 . 116 Guns 603 | 341 228 34 . . Cannons . | . . . . . Explosions 116 | . . . . 116 Melee . | . . . . . Ramming . | . . . . . Kinetic 294 | 131 129 34 . . Thermal 309 | 210 99 . . . Explosive 116 | . . . . 116 Electromagnetic . | . . . . . Impact . | . . . . . Slashing . | . . . . . Piercing . | . . . . . Highest Corruption . | . . . . . Average Corruption . | . . . . . Corruption Purged . | . . . . . Corruption Blocked . | . . . . . Overload Shots . | . . . . . Overflow Damage . | . . . . . Projectiles . | . . . . . Explosions . | . . . . . Melee . | . . . . . Knockbacks . | . . . . . Impact . | . . . . . Kinetic . | . . . . . Secondary . | . . . . . Self-Inflicted Damage 23 | . . . . 23 Shots 1 | . . . . 1 Rammed . | . . . . . Targets Rammed . | . . . . . Kicked . | . . . . . Crushed . | . . . . . Highest Temperature 141 | 100 141 . . 7 Average Temperature 45 | 35 67 . . 4 Received Heat Transfer 210 | . 72 66 . 72 Siege Activations . | . . . . . Martial Activations . | . . . . . Shielding Activations . | . . . . . Robots Disrupted . | . . . . . Combat Hostiles . | . . . . . Robots Corrupted . | . . . . . Combat Hostiles . | . . . . . Parts Fried . | . . . . . Impact Corruptions . | . . . . . Robots Melted . | . . . . . Combat Hostiles . | . . . . . Parts Melted . | . . . . . Heat Transferred 1147 | 851 296 . . . Parts Sabotaged . | . . . . . Parts Stolen . | . . . . . Parts Stripped . | . . . . . Power Chain Reactions . | . . . . . Alert | -11 -10 -10 -9 -9 ------- Run | Yrd Mat Sub Rec Scr Maximum Alert Level . | . . . . . Low Security (%) 100 | 100 100 . 100 . Level 1 . | . . . . . Level 2 . | . . . . . Level 3 . | . . . . . Level 4 . | . . . . . Level 5 . | . . . . . High Security . | . . . . . Max Security . | . . . . . Peak Influence 96 | 15 96 . 14 . Initial 4 | . . . 4 . Average 13 | 2 40 . 1 . Influence Increases 286 | 55 143 70 18 . Destroy 0b10 Robot/C 140 | . 80 60 . . Destroy 0b10 Robot/NC 65 | 55 10 . . . Destroy Leader 30 | . 20 10 . . Successful Hack 20 | . 2 . 18 . Destroy Structure 1 | . 1 . . . Lose Combat Pursuer 30 | . 30 . . . Influence Decreases 286 | 55 140 63 28 . Entered New Map 9 | . . 3 6 . Time Decay 247 | 55 130 40 22 . Lost Part 30 | . 10 20 . . Squads Dispatched 1 | . 1 . . . Investigation 1 | . 1 . . . Extermination . | . . . . . Reinforcement . | . . . . . Assault . | . . . . . Garrison . | . . . . . Intercept . | . . . . . Searches Triggered . | . . . . . Construction Impeded . | . . . . . Haulers Reinforced . | . . . . . Active Scanning Responses . | . . . . . Cargo Convoy Interrupts . | . . . . . Stealth | -11 -10 -10 -9 -9 --------- Run | Yrd Mat Sub Rec Scr Distress Signals . | . . . . . Communications Jammed . | . . . . . Distress Signals . | . . . . . Times Spotted 32 | . 7 9 . 16 Peak Tracking Total 6 | . 4 6 . 6 Tactical Retreats 2 | . 2 . . . Traps | -11 -10 -10 -9 -9 ------- Run | Yrd Mat Sub Rec Scr Traps Triggered . | . . . . . Indirectly . | . . . . . Trap Hack Attempts . | . . . . . Triggered . | . . . . . Disarmed . | . . . . . Reprogrammed . | . . . . . Reused . | . . . . . Traps Extracted . | . . . . . Installed . | . . . . . Triggered . | . . . . . Machines | -11 -10 -10 -9 -9 ---------- Run | Yrd Mat Sub Rec Scr Machines Disabled 1 | . . . . 1 Max in Single Turn 1 | . . . . 1 Machines Repaired . | . . . . . Machines Dismantled . | . . . . . Machines Sabotaged . | . . . . . Overloaded Fab Kills . | . . . . . Hacking | -11 -10 -10 -9 -9 --------- Run | Yrd Mat Sub Rec Scr Machines Accessed 18 | . 2 . 8 8 Terminals 3 | . . . 3 . Fabricators . | . . . . . Repair Stations 1 | . 1 . . . Recycling Units 4 | . 1 . 3 . Scanalyzers . | . . . . . Garrison Access . | . . . . . Total Hacks 103 | . 6 . 40 57 Successful 91 | . 2 . 32 57 Failed 12 | . 4 . 8 . Catastrophic 3 | . 1 . 2 . Database Lockouts . | . . . . . Manual . | . . . . . Terminals 7 | . . . 7 . Fabricators . | . . . . . Repair Stations 2 | . 2 . . . Recycling Units 12 | . 4 . 8 . Scanalyzers . | . . . . . Garrison Access . | . . . . . Terminal Hacks 85 | . . . 28 57 Record 77 | . . . 26 51 Robot Analysis 5 | . . . . 5 Zone Layout 1 | . . . 1 . Proto ID Catalog 1 | . . . . 1 Release Object 1 | . . . 1 . Fabricator Hacks . | . . . . . Repair Station Hacks 2 | . 2 . . . Scan Component 1 | . 1 . . . Repair 1 | . 1 . . . Recycling Unit Hacks 4 | . . . 4 . Retrieve Matter 1 | . . . 1 . Retrieve Components 3 | . . . 3 . Scanalyzer . | . . . . . Garrison Access Hacks . | . . . . . Unauthorized Hacks . | . . . . . Terminals . | . . . . . Fabricators . | . . . . . Repair Stations . | . . . . . Recycling Units . | . . . . . Scanalyzers . | . . . . . Garrison Access . | . . . . . Data Cores Recovered . | . . . . . Used . | . . . . . Hacking Detections 6 | . 1 . 5 . Full Trace Events 4 | . 1 . 3 . Feedback Events . | . . . . . Feedback Blocked . | . . . . . Robot Schematics Acquired . | . . . . . Robots Built . | . . . . . Authchips . | . . . . . Time . | . . . . . Total Robot Build Rating . | . . . . . Part Schematics Acquired . | . . . . . Parts Built . | . . . . . Authchips . | . . . . . Time . | . . . . . Total Part Build Rating . | . . . . . Parts Repaired 1 | . 1 . . . Time 26 | . 26 . . . Parts Recycled . | . . . . . Recycled Matter . | . . . . . Retrieved Matter . | . . . . . Retrieved Components 1 | . . . 1 . Parts Scanalyzed . | . . . . . Part Schematics Acquired . | . . . . . Parts Damaged . | . . . . . Bothacking | -11 -10 -10 -9 -9 ------------ Run | Yrd Mat Sub Rec Scr Used RIF Installer . | . . . . . Robots Hacked . | . . . . . Non-combat . | . . . . . Combat . | . . . . . Robot Hacks Applied . | . . . . . Relay Couplers Released . | . . . . . Fabnet Peak Effective % . | . . . . . Robots Rewired . | . . . . . Allies Hacked . | . . . . . Hacks Repelled . | . . . . . Allies | -11 -10 -10 -9 -9 -------- Run | Yrd Mat Sub Rec Scr Total Allies . | . . . . . Largest Group . | . . . . . Highest-Rated Group . | . . . . . Highest-Rated Ally . | . . . . . Total Orders . | . . . . . Ally Attacks . | . . . . . Total Damage . | . . . . . Kills . | . . . . . Allies Corrupted . | . . . . . Allies Melted . | . . . . . Intel | -11 -10 -10 -9 -9 ------- Run | Yrd Mat Sub Rec Scr Active Infowar (turns) . | . . . . . Robot Analysis Total 5 | . . . . 5 Derelict Logs Recovered 1 | . . 1 . . Drone Launches . | . . . . . Drone Recoveries . | . . . . . Exploration | -11 -10 -10 -9 -9 ------------- Run | Yrd Mat Sub Rec Scr Turns Passed 3424 | 284 328 137 453 2222 Spaces Moved 2383 | 110 223 127 362 1561 Core 6 | 1 . . . 5 Treads . | . . . . . Legs 38 | . . . . 38 Wheels 2339 | 109 223 127 362 1518 Hover . | . . . . . Flight . | . . . . . Fastest Speed 50 | 50 100 100 100 130 Average Speed 128 | 97 100 100 120 138 Slowest Speed 1550 | 100 100 100 130 1550 Overloaded Moves . | . . . . . Propulsion Burnouts . | . . . . . Robots Hopped . | . . . . . Potential Cave-ins . | . . . . . Cave-ins Triggered . | . . . . . Exploration Rate (%) 42 | 6 37 14 66 90 Regions Visited 4 Branch Regions 3 Pre-discovered Areas 3 | . . 1 . 2 Known Exits Taken 3 | . 1 1 1 . Unknown Exits Taken 1 | 1 . . . . Scrap Searched 3 | . . . . 3 Spaces Dug . | . . . . . Terrain Destroyed 42 | . . . . 42 Melee . | . . . . . Projectile . | . . . . . AOE 42 | . . . . 42 Terrain Rammed . | . . . . . Walls Destroyed . | . . . . . Machines Disabled . | . . . . . Actions | -11 -10 -10 -9 -9 --------- Run | Yrd Mat Sub Rec Scr Total 2650 | 225 295 130 380 1620 Wait 122 | 70 38 . 8 6 Move 2379 | 109 222 126 361 1561 Hop . | . . . . . Pick Up 44 | 2 10 . 6 26 Fast Attach 13 | 8 2 . . 3 Attach 6 | . 1 . 2 3 Detach . | . . . . . Swap 5 | . 2 . 1 2 Drop 22 | 3 2 . 2 15 Fire 59 | 33 18 4 . 4 Melee . | . . . . . Ram . | . . . . . Kick . | . . . . . Crush . | . . . . . Escape Stasis . | . . . . . Rewire . | . . . . . Trap . | . . . . . Miscellaneous . | . . . . . Route ------- -11/Scrapyard -10/Materials (discovered 2 exits: *Min / *Sub) -10/Subcaves -9/Recycling -9/Scraptown (discovered 2 exits: *Fac x2) History --------- Turn | Location | Event 6 | -11/Scrapyard | Discovered new exit (range 15) 285 | -11/Scrapyard | Entered Materials 305 | -10/Materials | Build established: Mutant 473 | -10/Materials | Discovered new exit (range 7) 510 | -10/Materials | Identified exit to Mines 546 | -10/Materials | Repaired Flight Unit 606 | -10/Materials | Discovered new exit (range 8) 612 | -10/Materials | Identified exit to Subcaves 613 | -10/Materials | Entered Subcaves 673 | -10/Subcaves | Core integrity fell below 50% 732 | -10/Subcaves | Shifting Twisted Machinery released Piercing Trap 743 | -10/Subcaves | Discovered new exit (range 8) 749 | -10/Subcaves | Identified exit to Recycling 750 | -10/Subcaves | Entered Recycling 1063 | -9/Recycling | Build established: Scavenger-Mutant 1140 | -9/Recycling | Scanned before Scraplab entrance 1163 | -9/Recycling | Entered Scraplab 1175 | -9/Recycling | Discovered new exit (range 4) 1177 | -9/Recycling | Identified exit to Scraptown 1203 | -9/Recycling | Entered Scraptown 1749 | -9/Scraptown | Visited UFD Registry 1749 | -9/Scraptown | Registered with UFD as "Geardriver" 1767 | -9/Scraptown | Visited Cyclists 1782 | -9/Scraptown | Entered Cyclist Reading Room 1788 | -9/Scraptown | Learned location of Zion (-6) 1788 | -9/Scraptown | Learned location of Exiles (-9) 1823 | -9/Scraptown | Visited Assassins FH 1882 | -9/Scraptown | Visited Spacefarers 1925 | -9/Scraptown | Build established: Mutant 1970 | -9/Scraptown | Visited Cave Peace 2015 | -9/Scraptown | Visited TADAMA 2067 | -9/Scraptown | Visited SPCMW 2135 | -9/Scraptown | Visited IN-MT5's Study 2504 | -9/Scraptown | Discovered new exit (range 5) 2513 | -9/Scraptown | Identified exit to Factory 2664 | -9/Scraptown | Visited Analyses Database 2694 | -9/Scraptown | Visited Botcube Research 2703 | -9/Scraptown | Found Botcube 2734 | -9/Scraptown | Visited Curators Association 2974 | -9/Scraptown | Visited Science Guys 3031 | -9/Scraptown | Visited Derelict Rescue Squad 3039 | -9/Scraptown | Found DRS Beacon 3109 | -9/Scraptown | Met Optimus 3109 | -9/Scraptown | Accepted into 0bPrime 3166 | -9/Scraptown | Visited Supply Room 3198 | -9/Scraptown | Visited Supply Room 3324 | -9/Scraptown | Civil war broke out across Scraptown 3370 | -9/Scraptown | Core integrity fell below 20% 3424 | -9/Scraptown | Lost 10 allies 3424 | -9/Scraptown | Discovered exit to Factory (range 12) 3425 | -9/Scraptown | Destroyed by N0-U30(j) with Overtuned Pulse Rifle Last Messages --------------- 03372_ Slug penetrates 13-0BT(x). 03378_ 13-0BT(x) destroyed. 03381_ Bolt penetrates Machine. 03382_ Machine disabled. 03386_ Acquired Ovr. Titanium Leg. 03387_ MB-N1W(x) destroyed. 03389_ Dropped VSS Leg. 03391_ Bolt penetrates Optimus. 03398_ Supplies damaged. 03400_ WH-FYF(j) destroyed. 03408_ Bolt penetrates Earth. 03409_ MI-OTA(h): "Stop this nonsense!" 03409_ MI-OTA(h) destroyed. 03423_ OM-F3X(j) suffers critical hit (Burn). 03424_ Chain reaction triggered in Lgt. Deuterium Engine. 03424_ VF-DUL(j) destroyed. 03424_ 75-RIX(p) destroyed. 03424_ EXIT=FOUND: FACTORY 03425_ The unstable cave ceiling collapses. Map ----- +----------------------------------------------------+ | | | | | | | | | | | | | | | ?????????????????????????????????????????????????? | | ?????????????????????????????????????????????????? | | ?????????????????????????????????????????????????? | | ?????????????????????????????????????????????????? | | ?????????????????????????????????????????????????? | | ?????????????????????????????????????????????????? | | ??????????????????????????##?????????????????????? | | ?????????????????????????? #?????????????????????? | | ?????????????????????????? #?????????????????????? | | ?????????????????????????? #?????????????????????? | | ??????????????????????????[#?????????????????????? | | ????????????????????????##!####??????????????????? | | ?????????????????????#### [# ##?????????????????? | | ?????????????????????# % !#?##"!"???????????? | | ?????????????????#""?# %[==!# ;=j%#??????????? | | ???????????##"" ##!!"# !![ =%;;;#j![##?????????? | | ?????????? g j =*%!=!*!!=%!!j%%!=#?????????? | | ?????????????? [/%====%[ =[!=%!???????????? | | ?????????????????????# %@%* !;#?????????????????? | | ?????????????????????#### [= ##?????????????????? | | ????????????????????????# [=###??????????????????? | | ????????????????????????# *% #???????????????????? | | ????????????????????????# =% #???????????????????? | | ???????????????########## ##??????????????????? | | ???????????????# " !!! #??????????????????? | | ??????????????????""" [ #########???????????? | | ??????????????????"" = #"""[[ #???????????? | | ???????????????# "" # #"""[[ ! #???????????? | | ???????????????#" """ # ; !!!! ""#???????????? | | ????????????????" !%#==;** ""#???????????? | | ???????????????# [/ %# == "#???????????? | | ???????????????#"""""""""#!!#= = "#???????????? | | ???????? ??????????# #####%=##=#######???????????? | | ?????### #?????##### ##### ## ##########????????? | | ??"""""" """"" """"" """" "" "##""""""#????????? | | ? %=!* !"## ""!"#????????? | | "## !!!"#????????? | | ! "## !!#????????? | | ? "## / !#????????? | | ?? // #????????? | | ??""""""""" """ """""""" " "## " /"#????????? | | ????""""""???"""""""""" "" "##""""""#????????? | | ###### ######??########"" "#########????????? | +----------------------------------------------------+ Best States ------------- Heat Dissipation 25 Energy Generation 18 Energy Capacity 250 Matter Stores 300 Matter Capacity 300 Sight Range 16 Terrain Scan Density 10 Evasion (%) 42 Targeting Accuracy 5 Item Schematics ----------------- None Robot Schematics ------------------ None Fabricated ------------ Nothing Repaired ---------- Flight Unit | 5% | -10/Materials Alien Tech Used ----------------- None Achievements -------------- None Challenges ------------ None Game ------ Seed 1234567890 Manual? 1 Play Time 00:26:37 Cumulative 18.4 hours Start 2025.09.09 @ 12:35:30 End 2025.09.09 @ 13:02:36 Sessions 1 Manual Loads 0 Difficulty Rogue Special Mode None Game No. 56 Rogue 56 Adventurer 0 Explorer 0 Win Type - Total 0 Types 0/0/0/0/0/0/0/0/0/0 Lore% 22 Gallery% 23 Achievement% 25 Wizard Run 0 Options --------- Layout 2 ASCII 0 Keyboard 0 Movement Mouse Keybinds 0 Fullscreen 2 Font 24/Smallcaps Map View 50x44 Zoom Use 0% Tactical HUD 1 Map Filters NONE Filters NONE Steam 1 RUN: 85fedda5-9130-4b1b-a0ff-d2909bb591ff